fUST/lending_fUST_20240921
["ID","MTS","AMOUNT","RATE_DAILY","PERIOD"]
[338660634,1726857044326,-500.0,0.00015996,2]
[338660635,1726857044337,-500.0,0.00015996,2]
[338660636,1726857044347,-1049.08,0.00015996,2]
[338660637,1726857044357,-150.0,0.00016,2]
[338660638,1726857044367,-207876.030076,0.00016005,2]
[338660639,1726857044385,-1731.19781452,0.00016005,2]
[338660640,1726857044535,-500.0,0.00015722,2]
[338660641,1726857044545,-2695.55715088,0.00016005,2]
[338660642,1726857044556,-1144.9793789,0.00016005,2]
[338660643,1726857044568,-623.32381855,0.00016005,2]
[338660644,1726857044579,-7899.43215442,0.00016005,2]
[338660645,1726857044594,-5330.61596673,0.00016005,2]
[338660646,1726857044604,-500.0,0.00016006,2]
[338660647,1726857044614,-1689.83,0.00016006,2]
[338660648,1726857044624,-500.0,0.00016006,2]
[338660649,1726857044633,-500.0,0.00016006,2]
[338660650,1726857044642,-500.0,0.00016006,2]
[338660651,1726857044652,-550.98,0.00016006,2]
[338660652,1726857044662,-500.0,0.00016006,2]
[338660653,1726857044672,-587.0,0.00016006,2]
[338660654,1726857044681,-827.5,0.00016006,2]
[338660655,1726857044690,-500.0,0.00016006,2]
[338660656,1726857044699,-606.74,0.00016006,2]
[338660657,1726857044709,-588.27,0.00016006,2]
[338660658,1726857044722,-500.0,0.00016006,2]
[338660659,1726857044731,-659.86,0.00016006,2]
[338660660,1726857044740,-1228.75,0.00016006,2]
[338660661,1726857044749,-593.29,0.00016006,2]
[338660662,1726857044758,-500.0,0.00016006,2]
[338660663,1726857044767,-500.0,0.00016006,2]
[338660664,1726857044777,-500.0,0.00016006,2]
[338660665,1726857044787,-500.0,0.00016006,2]
[338660666,1726857044797,-500.0,0.00016006,2]
[338660667,1726857044807,-500.0,0.00016006,2]
[338660668,1726857044816,-500.0,0.00016006,2]
[338660669,1726857044826,-500.0,0.00016006,2]
[338660670,1726857044836,-500.0,0.00016006,2]
[338660671,1726857044847,-500.0,0.00016006,2]
[338660672,1726857044856,-257.24,0.00016006,2]
[338660673,1726857044866,-500.0,0.00016006,2]
[338660674,1726857044876,-500.0,0.00016006,2]
[338660675,1726857044885,-500.0,0.00016006,2]
[338660676,1726857044895,-249.70408648,0.00016006,2]
[338660677,1726857044904,-500.0,0.00016006,2]
[338660678,1726857044914,-574.8,0.00016007,2]
[338660679,1726857044928,-500.0,0.00016007,2]
[338660680,1726857044938,-724.38,0.00016007,2]
[338660681,1726857044948,-500.0,0.00016007,2]
[338660682,1726857044959,-500.0,0.00016007,2]
[338660683,1726857044971,-500.0,0.00016007,2]
[338660684,1726857044981,-500.0,0.00016007,2]
[338660685,1726857044991,-1256.42,0.00016007,2]
[338660686,1726857045001,-500.0,0.00016007,2]
[338660687,1726857045012,-500.0,0.00016007,2]
[338660688,1726857045022,-985.15,0.00016007,2]
[338660689,1726857045033,-500.0,0.00016007,2]
[338660690,1726857045044,-260.6,0.00016007,2]
[338660691,1726857045055,-500.0,0.00016007,2]
[338660692,1726857045065,-500.0,0.00016016,2]
[338660693,1726857045074,-502.42,0.00016016,2]
[338660694,1726857045084,-844.17,0.00016016,2]
[338660695,1726857045094,-500.0,0.00016016,2]
[338660696,1726857045103,-500.0,0.00016016,2]
[338660697,1726857045114,-500.0,0.00016016,2]
[338660698,1726857045124,-613.33,0.00016016,2]
[338660699,1726857045134,-500.0,0.00016016,2]
[338660700,1726857045143,-524.02,0.00016016,2]
[338660701,1726857045152,-500.0,0.00016016,2]
[338660702,1726857045162,-500.0,0.00016016,2]
[338660703,1726857045171,-496.33150023,0.00016016,2]
[338660704,1726857045181,-840.61,0.00016016,2]
[338660705,1726857045190,-500.0,0.00016016,2]
[338660706,1726857045201,-500.0,0.00016016,2]
[338660707,1726857045211,-500.0,0.00016016,2]
[338660708,1726857045223,-500.0,0.00016016,2]
[338660709,1726857045233,-500.0,0.00016016,2]
[338660710,1726857045242,-500.0,0.00016016,2]
[338660711,1726857045252,-500.0,0.00016016,2]
[338660712,1726857045262,-643.09,0.00016016,2]
[338660713,1726857045272,-500.0,0.00016016,2]
[338660714,1726857045282,-500.0,0.00016016,2]
[338660715,1726857045293,-500.0,0.00016016,2]
[338660716,1726857045302,-500.0,0.00016016,2]
[338660717,1726857045312,-500.0,0.00016016,2]
[338660718,1726857045321,-500.0,0.00016016,2]
[338660719,1726857045331,-500.0,0.00016016,2]
[338660720,1726857045341,-500.0,0.00016016,2]
[338660721,1726857045351,-500.0,0.00016016,2]
[338660722,1726857045361,-500.0,0.00016016,2]
[338660723,1726857045371,-500.0,0.00016016,2]
[338660724,1726857045380,-500.0,0.00016016,2]
[338660725,1726857045390,-500.0,0.00016016,2]
[338660726,1726857045399,-500.0,0.00016016,2]
[338660727,1726857045409,-722.4,0.00016016,2]
[338660728,1726857045419,-500.0,0.00016016,2]
[338660729,1726857045429,-619.7,0.00016016,2]
[338660730,1726857045438,-586.96,0.00016016,2]
[338660731,1726857045447,-500.0,0.00016016,2]
[338660732,1726857045457,-687.9,0.00016016,2]
[338660733,1726857045468,-500.0,0.00016016,2]
[338660734,1726857045478,-500.0,0.00016016,2]
[338660735,1726857045488,-500.0,0.00016016,2]
[338660736,1726857045497,-500.0,0.00016016,2]
[338660737,1726857045508,-500.0,0.00016016,2]
[338660738,1726857045518,-500.0,0.00016016,2]
[338660739,1726857045528,-287.73218939,0.00016016,2]
[338660740,1726857045539,-500.0,0.00016016,2]
[338660741,1726857045548,-519.88798941,0.00016016,2]
[338660742,1726857045559,-500.0,0.00016016,2]
[338660743,1726857045568,-500.0,0.00016016,2]
[338660744,1726857045579,-500.0,0.00016016,2]
[338660745,1726857045588,-545.04,0.00016016,2]
[338660746,1726857045598,-500.0,0.00016016,2]
[338660747,1726857045608,-500.0,0.00016016,2]
[338660748,1726857045618,-500.0,0.00016016,2]
[338660749,1726857045628,-500.0,0.00016016,2]
[338660750,1726857045638,-314.34766486,0.00016016,2]
[338660751,1726857045649,-500.0,0.00016016,2]
[338660752,1726857045659,-708.7,0.00016016,2]
[338660753,1726857045670,-500.0,0.00016016,2]
[338660754,1726857045682,-332.5408252,0.00016016,2]
[338660755,1726857045693,-717.67,0.00016016,2]
[338660756,1726857045703,-535.86,0.00016016,2]
[338660757,1726857045716,-151.0,0.00016016,2]
[338660758,1726857045725,-500.0,0.00016016,2]
[338660759,1726857045734,-504.24929641,0.00016016,2]
[338660760,1726857045743,-151.0,0.00016016,2]
[338660761,1726857045754,-500.0,0.00016016,2]
[338660762,1726857045763,-203.184683,0.00016016,2]
[338660763,1726857045772,-500.0,0.00016016,2]
[338660764,1726857045781,-151.0,0.00016016,2]
[338660765,1726857045791,-500.0,0.00016016,2]
[338660766,1726857045801,-614.23125198,0.00016017,2]
[338660767,1726857045810,-500.0,0.00016026,2]
[338660768,1726857045822,-650.03,0.00016026,2]
[338660769,1726857045832,-974.75,0.00016026,2]
[338660770,1726857045841,-1042.1,0.00016026,2]
[338660771,1726857045853,-1022.19,0.00016026,2]
[338660772,1726857045863,-500.0,0.00016026,2]
[338660773,1726857045872,-619.82,0.00016026,2]
[338660774,1726857045881,-579.86,0.00016026,2]
[338660775,1726857045891,-500.0,0.00016026,2]
[338660776,1726857045902,-500.0,0.00016026,2]
[338660777,1726857045913,-500.0,0.00016026,2]
[338660778,1726857045926,-500.0,0.00016026,2]
[338660779,1726857045936,-500.0,0.00016026,2]
[338660780,1726857045947,-500.0,0.00016026,2]
[338660781,1726857045956,-500.0,0.00016026,2]
[338660782,1726857045966,-324.36611061,0.00016027,2]
[338660783,1726857045976,-500.0,0.00016027,2]
[338660784,1726857045985,-500.0,0.00016027,2]
[338660785,1726857045994,-2647.52,0.00016027,2]
[338660786,1726857046005,-500.0,0.00016027,2]
[338660787,1726857046015,-751.22,0.00016027,2]
[338660788,1726857046024,-500.0,0.00016027,2]
[338660789,1726857046033,-1002.9,0.00016027,2]
[338660790,1726857046042,-638.13,0.00016027,2]
[338660791,1726857046052,-500.0,0.00016027,2]
[338660793,1726857046062,-500.0,0.00016027,2]
[338660794,1726857046073,-469.63465736,0.00016027,2]
[338660795,1726857046083,-741.22,0.00016027,2]
[338660796,1726857046093,-500.0,0.00016027,2]
[338660797,1726857046102,-500.0,0.00016027,2]
[338660798,1726857046113,-500.0,0.00016027,2]
[338660799,1726857046124,-500.0,0.00016027,2]
[338660800,1726857046135,-500.0,0.00016027,2]
[338660801,1726857046147,-639.8,0.00016027,2]
[338660802,1726857046159,-907.89,0.00016027,2]
[338660803,1726857046169,-500.0,0.00016027,2]
[338660804,1726857046179,-500.0,0.00016027,2]
[338660805,1726857046188,-527.01,0.00016027,2]
[338660806,1726857046197,-500.0,0.00016027,2]
[338660807,1726857046207,-500.0,0.00016027,2]
[338660808,1726857046216,-500.0,0.00016027,2]
[338660809,1726857046225,-525.86,0.00016027,2]
[338660810,1726857046234,-500.0,0.00016027,2]
[338660811,1726857046243,-500.0,0.00016027,2]
[338660812,1726857046253,-500.0,0.00016027,2]
[338660813,1726857046262,-500.0,0.00016027,2]
[338660815,1726857046273,-500.0,0.00016027,2]
[338660817,1726857046284,-621.0,0.00016027,2]
[338660819,1726857046295,-500.0,0.00016027,2]
[338660820,1726857046305,-313.04695056,0.00016027,2]
[338660822,1726857046315,-516.89,0.00016027,2]
[338660824,1726857046325,-500.0,0.00016027,2]
[338660825,1726857046335,-500.0,0.00016027,2]
[338660826,1726857046345,-500.0,0.00016027,2]
[338660827,1726857046356,-500.0,0.00016027,2]
[338660828,1726857046366,-500.0,0.00016027,2]
[338660830,1726857046375,-500.0,0.00016027,2]
[338660832,1726857046385,-500.0,0.00016027,2]
[338660833,1726857046394,-501.58793847,0.00016027,2]
[338660834,1726857046403,-306.0,0.00016027,2]
[338660835,1726857046411,-152.466372,0.00016028,2]
[338660836,1726857046420,-151.0,0.00016028,2]
[338660837,1726857046430,-1932.807,0.00016028,2]
[338660838,1726857046441,-500.0,0.00016073,2]
[338660840,1726857046450,-500.0,0.00016073,2]
[338660842,1726857046459,-386.97029397,0.00016073,2]
[338660843,1726857046469,-500.0,0.00016073,2]
[338660845,1726857046486,-500.0,0.00016073,2]
[338660847,1726857046495,-500.0,0.00016073,2]
[338660848,1726857046504,-150.112233,0.000161,2]
[338660849,1726857046513,-150.112233,0.000161,2]
[338660850,1726857046523,-151.0,0.00016153,2]
[338660852,1726857046535,-151.0,0.00016153,2]
[338660854,1726857046545,-157.363196,0.00016153,2]
[338660856,1726857046555,-157.363196,0.00016153,2]
[338660858,1726857046564,-151.0,0.00016153,2]
[338660859,1726857046573,-151.0,0.00016153,2]
[338660860,1726857046583,-151.0,0.00016153,2]
[338660861,1726857046593,-517.851658,0.00016153,2]
[338660862,1726857046603,-517.851658,0.00016153,2]
[338660863,1726857046612,-1066.884101,0.00016153,2]
[338660864,1726857046623,-1066.884101,0.00016153,2]
[338660865,1726857046633,-238.22404,0.00016153,2]
[338660866,1726857046643,-238.22404,0.00016153,2]
[338660867,1726857046656,-151.0,0.00016163,2]
[338660868,1726857046665,-151.0,0.00016163,2]
[338660869,1726857046677,-740.644047,0.00016163,2]
[338660870,1726857046690,-151.0,0.00016163,2]
[338660871,1726857046701,-740.644047,0.00016163,2]
[338660872,1726857046712,-182.991777,0.00016163,2]
[338660873,1726857046724,-182.991777,0.00016163,2]
[338660874,1726857046735,-151.0,0.00016163,2]
[338660875,1726857046746,-151.0,0.0001618,2]
[338660876,1726857046756,-231.906469,0.0001618,2]
[338660877,1726857046766,-231.906469,0.0001618,2]
[338660878,1726857046776,-61838.3884396,0.000162,2]
[338660879,1726857046786,-150.112233,0.000162,2]
[338660880,1726857046796,-150.112233,0.000162,2]
[338660881,1726857046806,-150.112233,0.000162,2]
[338660882,1726857046816,-150.112235,0.000162,2]
[338660883,1726857046825,-151.0,0.000162,2]
[338660884,1726857046834,-357.097693,0.000162,2]
[338660885,1726857046843,-357.097693,0.000162,2]
[338660886,1726857046852,-332.781803,0.000162,2]
[338660887,1726857046861,-332.781803,0.000162,2]
[338660888,1726857046870,-569.87,0.00016269,2]
[338660889,1726857047021,-1897.06,0.00016269,2]
[338660890,1726857047033,-500.0,0.00016269,2]
[338660891,1726857047043,-500.0,0.00016269,2]
[338660892,1726857047054,-500.0,0.00016269,2]
[338660893,1726857047065,-500.0,0.00016269,2]
[338660894,1726857047074,-45648.07,0.0001627,2]
[338660895,1726857047084,-6558.86,0.0001627,2]
[338660896,1726857047095,-500.0,0.0001627,2]
[338660897,1726857047105,-500.0,0.0001627,2]
[338660898,1726857047115,-1049.08,0.0001627,2]
[338660899,1726857047124,-500.0,0.0001628,2]
[338660900,1726857047133,-1689.83,0.0001628,2]
[338660901,1726857047144,-500.0,0.0001628,2]
[338660902,1726857047154,-500.0,0.0001628,2]
[338660903,1726857047164,-500.0,0.0001628,2]
[338660904,1726857047173,-550.98,0.0001628,2]
[338660905,1726857047182,-500.0,0.0001628,2]
[338660906,1726857047191,-587.0,0.0001628,2]
[338660907,1726857047201,-827.5,0.0001628,2]
[338660908,1726857047210,-500.0,0.0001628,2]
[338660909,1726857047220,-606.74,0.0001628,2]
[338660910,1726857047229,-588.27,0.0001628,2]
[338660911,1726857047238,-500.0,0.0001628,2]
[338660912,1726857047248,-659.86,0.0001628,2]
[338660913,1726857047257,-1228.75,0.0001628,2]
[338660914,1726857047266,-593.29,0.0001628,2]
[338660915,1726857047275,-500.0,0.0001628,2]
[338660916,1726857047284,-500.0,0.0001628,2]
[338660917,1726857047293,-500.0,0.0001628,2]
[338660918,1726857047302,-500.0,0.0001628,2]
[338660919,1726857047311,-500.0,0.0001628,2]
[338660920,1726857047321,-500.0,0.0001628,2]
[338660921,1726857047330,-500.0,0.0001628,2]
[338660922,1726857047340,-500.0,0.0001628,2]
[338660923,1726857047349,-500.0,0.0001628,2]
[338660924,1726857047358,-500.0,0.0001628,2]
[338660925,1726857047368,-500.0,0.0001628,2]
[338660926,1726857047377,-500.0,0.0001628,2]
[338660927,1726857047386,-500.0,0.0001628,2]
[338660928,1726857047396,-574.8,0.00016281,2]
[338660929,1726857047405,-724.38,0.00016281,2]
[338660930,1726857047414,-500.0,0.00016281,2]
[338660931,1726857047424,-329.49509007,0.00016281,2]
[338660932,1726857047433,-500.0,0.00016281,2]
[338660933,1726857047442,-1256.42,0.00016281,2]
[338660934,1726857047452,-500.0,0.00016281,2]
[338660935,1726857047461,-500.0,0.00016281,2]
[338660936,1726857047470,-985.15,0.00016281,2]
[338660937,1726857047480,-500.0,0.00016281,2]
[338660938,1726857047489,-260.6,0.00016281,2]
[338660939,1726857047498,-500.0,0.00016281,2]
[338660940,1726857047507,-151.0,0.00016281,2]
[338660941,1726857047517,-740.644047,0.00016281,2]
[338660942,1726857047526,-151.0,0.00016281,2]
[338660943,1726857047535,-740.644047,0.00016281,2]
[338660944,1726857047544,-182.991777,0.00016281,2]
[338660945,1726857047553,-182.991777,0.00016281,2]
[338660946,1726857047563,-211.309823,0.00016281,2]
[338660947,1726857047572,-151.0,0.00016281,2]
[338660948,1726857047582,-151.0,0.00016281,2]
[338660949,1726857047591,-151.0,0.00016281,2]
[338660950,1726857047600,-151.0,0.00016282,2]
[338660951,1726857047610,-161.81281085,0.00016289,2]
[338660952,1726857047619,-500.0,0.0001629,2]
[338660953,1726857047628,-502.42,0.0001629,2]
[338660954,1726857047637,-844.17,0.0001629,2]
[338660955,1726857047647,-500.0,0.0001629,2]
[338660956,1726857047656,-500.0,0.0001629,2]
[338660957,1726857047665,-500.0,0.0001629,2]
[338660958,1726857047674,-613.33,0.0001629,2]
[338660959,1726857047683,-500.0,0.0001629,2]
[338660960,1726857047692,-524.02,0.0001629,2]
[338660961,1726857047702,-500.0,0.0001629,2]
[338660962,1726857047711,-500.0,0.0001629,2]
[338660963,1726857047720,-840.61,0.0001629,2]
[338660964,1726857047730,-500.0,0.0001629,2]
[338660965,1726857047740,-500.0,0.0001629,2]
[338660966,1726857047749,-500.0,0.0001629,2]
[338660967,1726857047758,-500.0,0.0001629,2]
[338660968,1726857047767,-500.0,0.0001629,2]
[338660969,1726857047776,-500.0,0.0001629,2]
[338660970,1726857047785,-500.0,0.0001629,2]
[338660971,1726857047794,-643.09,0.0001629,2]
[338660972,1726857047803,-500.0,0.0001629,2]
[338660973,1726857047811,-500.0,0.0001629,2]
[338660974,1726857047820,-500.0,0.0001629,2]
[338660975,1726857047830,-500.0,0.0001629,2]
[338660976,1726857047839,-500.0,0.0001629,2]
[338660977,1726857047848,-500.0,0.0001629,2]
[338660978,1726857047858,-500.0,0.0001629,2]
[338660979,1726857047867,-500.0,0.0001629,2]
[338660980,1726857047876,-500.0,0.0001629,2]
[338660981,1726857047885,-400.4723907,0.0001629,2]
[338660982,1726857047894,-500.03222871,0.0001629,2]
[338660983,1726857047903,-500.0,0.0001629,2]
[338660984,1726857047912,-500.0,0.0001629,2]
[338660985,1726857047923,-722.4,0.0001629,2]
[338660986,1726857047933,-500.0,0.0001629,2]
[338660987,1726857047942,-586.96,0.0001629,2]
[338660988,1726857047951,-500.0,0.0001629,2]
[338660989,1726857047960,-687.9,0.0001629,2]
[338660990,1726857047972,-500.0,0.0001629,2]
[338660991,1726857047982,-500.0,0.0001629,2]
[338660992,1726857047992,-500.0,0.0001629,2]
[338660993,1726857048003,-500.0,0.0001629,2]
[338660994,1726857048013,-500.0,0.0001629,2]
[338660995,1726857048022,-500.0,0.0001629,2]
[338660996,1726857048033,-500.0,0.0001629,2]
[338660997,1726857048043,-500.0,0.0001629,2]
[338660998,1726857048054,-545.04,0.0001629,2]
[338660999,1726857048064,-500.0,0.0001629,2]
[338661000,1726857048073,-500.0,0.0001629,2]
[338661001,1726857048082,-290.42028302,0.0001629,2]
[338661002,1726857048092,-500.0,0.0001629,2]
[338661003,1726857048102,-171.13255659,0.0001629,2]
[338661004,1726857048111,-708.7,0.0001629,2]
[338661005,1726857048121,-500.0,0.0001629,2]
[338661006,1726857048131,-717.67,0.0001629,2]
[338661007,1726857048140,-535.86,0.0001629,2]
[338661008,1726857048150,-500.0,0.0001629,2]
[338661009,1726857048159,-500.0,0.0001629,2]
[338661010,1726857048169,-500.0,0.0001629,2]
[338661011,1726857048179,-500.0,0.0001629,2]
[338661012,1726857048189,-151.0,0.00016292,2]
[338661013,1726857048199,-151.0,0.00016292,2]
[338661014,1726857048209,-254.881721,0.00016292,2]
[338661015,1726857048220,-460.764051,0.00016292,2]
[338661016,1726857048229,-460.764051,0.00016292,2]
[338661017,1726857048238,-151.0,0.00016292,2]
[338661018,1726857048248,-151.0,0.00016292,2]
[338661019,1726857048257,-155.38962,0.000163,2]
[338661020,1726857048267,-150.112233,0.000163,2]
[338661021,1726857048277,-150.112233,0.000163,2]
[338661022,1726857048286,-650.03,0.000163,2]
[338661023,1726857048296,-974.75,0.000163,2]
[338661024,1726857048305,-1042.1,0.000163,2]
[338661025,1726857048316,-1022.19,0.000163,2]
[338661026,1726857048326,-500.0,0.000163,2]
[338661027,1726857048335,-619.82,0.000163,2]
[338661028,1726857048346,-579.86,0.000163,2]
[338661029,1726857048356,-500.0,0.000163,2]
[338661030,1726857048365,-330.86102192,0.000163,2]
[338661031,1726857048374,-500.0,0.000163,2]
[338661032,1726857048383,-500.0,0.000163,2]
[338661033,1726857048392,-478.04,0.000163,2]
[338661034,1726857048402,-500.0,0.000163,2]
[338661035,1726857048411,-500.0,0.000163,2]
[338661036,1726857048420,-74820.93344556,0.00016301,5]
[338661037,1726857048544,-500.0,0.00015721,2]
[338661038,1726857048554,-500.0,0.00015721,2]
[338661039,1726857048563,-500.0,0.00015732,2]
[338661040,1726857048572,-500.0,0.00015995,2]
[338661041,1726857048581,-500.0,0.00016006,2]
[338661042,1726857048591,-500.0,0.0001628,2]
[338661043,1726857048603,-2262.0525197,0.00016301,5]
[338661046,1726857154590,429.34,0.00010959,2]
[338661103,1726857940281,196.086629,0.00013612,2]
[338661151,1726858231733,-694.76841677,0.00014046,2]
[338661154,1726858231745,-3650.01943273,0.00014046,2]
[338661156,1726858231754,-308.7222407,0.00014046,2]
[338661158,1726858231763,-258.622775,0.00014331,2]
[338661160,1726858231772,-188.342506,0.00014386,2]
[338661161,1726858231781,-188.342506,0.00014458,2]
[338661164,1726858231790,-172.728813,0.00014504,2]
[338661165,1726858231800,-172.728813,0.00014544,2]
[338661168,1726858231809,-172.728813,0.00014584,2]
[338661170,1726858231819,-172.728813,0.00014623,2]
[338661172,1726858231828,-172.728813,0.00014663,2]
[338661174,1726858231837,-172.728813,0.00014703,2]
[338661176,1726858231846,-172.728813,0.00014743,2]
[338661178,1726858231855,-172.728813,0.00014783,2]
[338661180,1726858231864,-172.728813,0.00014822,2]
[338661182,1726858231873,-172.728813,0.00014862,2]
[338661184,1726858231882,-172.728813,0.00014902,2]
[338661186,1726858231892,-172.728813,0.00014942,2]
[338661188,1726858231901,-172.728813,0.00014981,2]
[338661190,1726858231910,-172.728813,0.00015021,2]
[338661192,1726858231919,-172.728813,0.00015061,2]
[338661193,1726858231936,-172.728813,0.00015101,2]
[338661195,1726858231945,-172.728813,0.00015141,2]
[338661197,1726858231954,-172.728813,0.0001518,2]
[338661199,1726858231963,-300.0,0.00015199,2]
[338661201,1726858231972,-300.0,0.00015199,2]
[338661203,1726858231982,-218.55549092,0.000152,2]
[338661205,1726858231991,-172.728813,0.0001522,2]
[338661207,1726858232001,-172.728813,0.0001526,2]
[338661209,1726858232010,-1154.6895883,0.00015523,2]
[338661211,1726858232020,-192.91056674,0.00015523,2]
[338661213,1726858232029,-772.67518933,0.000156,2]
[338661215,1726858232038,-772.67518931,0.00015602,2]
[338661218,1726858232047,-772.67518931,0.00015604,2]
[338661220,1726858232057,-772.67518931,0.00015606,2]
[338661222,1726858232066,-1902.50531397,0.00015608,2]
[338661224,1726858232077,-1000.0,0.00015621,2]
[338661225,1726858232086,-289.64318817,0.00015699,2]
[338661227,1726858232096,-500.0,0.00015699,2]
[338661230,1726858232106,-500.0,0.00015699,2]
[338661232,1726858232115,-506.62459962,0.00015699,2]
[338661233,1726858232124,-500.0,0.00015699,2]
[338661235,1726858232133,-500.0,0.00015699,2]
[338661237,1726858232142,-500.0,0.00015699,2]
[338661239,1726858232152,-500.0,0.00015699,2]
[338661241,1726858232161,-415.64689264,0.00015699,2]
[338661243,1726858232171,-500.0,0.00015699,2]
[338661245,1726858232181,-500.0,0.00015699,2]
[338661247,1726858232190,-500.0,0.00015699,2]
[338661249,1726858232199,-500.0,0.00015699,2]
[338661251,1726858232208,-500.0,0.00015699,2]
[338661253,1726858232217,-500.0,0.00015699,2]
[338661255,1726858232226,-500.0,0.00015699,2]
[338661257,1726858232236,-500.0,0.00015699,2]
[338661260,1726858232246,-282.28745225,0.00015699,2]
[338661262,1726858232256,-254.88920494,0.00015699,2]
[338661264,1726858232265,-500.0,0.00015699,2]
[338661266,1726858232275,-500.0,0.00015699,2]
[338661268,1726858232284,-383.16984443,0.00015699,2]
[338661270,1726858232297,-580.50547909,0.00015699,2]
[338661271,1726858232310,-500.0,0.00015699,2]
[338661273,1726858232319,-500.0,0.00015699,2]
[338661274,1726858232328,-500.0,0.00015699,2]
[338661276,1726858232337,-500.0,0.00015699,2]
[338661278,1726858232347,-500.0,0.00015699,2]
[338661279,1726858232356,-500.0,0.00015699,2]
[338661281,1726858232365,-500.0,0.00015699,2]
[338661282,1726858232373,-387.2127888,0.00015699,2]
[338661283,1726858232383,-500.0,0.00015699,2]
[338661284,1726858232393,-500.0,0.00015699,2]
[338661285,1726858232404,-500.0,0.00015699,2]
[338661286,1726858232414,-500.0,0.00015699,2]
[338661287,1726858232428,-500.0,0.00015699,2]
[338661288,1726858232439,-500.0,0.00015699,2]
[338661289,1726858232449,-399.78480681,0.00015699,2]
[338661290,1726858232458,-500.0,0.00015699,2]
[338661291,1726858232468,-500.0,0.00015699,2]
[338661292,1726858232478,-500.0,0.00015699,2]
[338661293,1726858232487,-500.0,0.00015699,2]
[338661294,1726858232496,-500.0,0.00015699,2]
[338661295,1726858232505,-312.59623966,0.00015699,2]
[338661322,1726858237943,-449.46135705,0.00015608,2]
[338661334,1726858238054,-323.21383226,0.00015608,2]
[338661336,1726858238064,-187.40376034,0.00015699,2]
[338661338,1726858238073,-500.0,0.00015699,2]
[338661340,1726858238083,-500.0,0.00015699,2]
[338661342,1726858238093,-433.91627049,0.00015699,2]
[338661345,1726858238103,-500.0,0.00015699,2]
[338661347,1726858238112,-500.0,0.00015699,2]
[338661349,1726858238122,-500.0,0.00015699,2]
[338661350,1726858238131,-500.0,0.00015699,2]
[338661351,1726858238141,-500.0,0.00015699,2]
[338661352,1726858238150,-500.0,0.00015699,2]
[338661353,1726858238159,-500.0,0.00015699,2]
[338661354,1726858238168,-500.0,0.00015699,2]
[338661355,1726858238178,-500.0,0.00015699,2]
[338661356,1726858238187,-500.0,0.00015699,2]
[338661357,1726858238197,-500.0,0.00015699,2]
[338661358,1726858238207,-500.0,0.00015699,2]
[338661359,1726858238217,-500.0,0.00015699,2]
[338661360,1726858238227,-500.0,0.00015699,2]
[338661361,1726858238237,-500.0,0.00015699,2]
[338661362,1726858238246,-500.0,0.00015699,2]
[338661363,1726858238256,-500.0,0.00015699,2]